bitfinex-derivatives/quotes_BTCF0:USTF0_20241210
["timestamp","ask_amount","ask_price","bid_price","bid_amount"]
[1733817971556,0.06532245,97210.0,97209.0,0.24628045]
[1733817971847,0.06632245,97210.0,97209.0,6.968e-05]
[1733817972052,0.06732245,97210.0,97209.0,6.968e-05]
[1733817973759,0.06632245,97210.0,97209.0,6.968e-05]
[1733817974242,0.01490545,97210.0,97209.0,6.968e-05]
[1733817974443,0.01490545,97210.0,97209.0,0.3087005]
[1733817974854,0.01590545,97210.0,97209.0,0.67820733]
[1733817975153,0.01590545,97210.0,97209.0,0.62291086]
[1733817975348,0.01390545,97210.0,97209.0,0.62291086]
[1733817975544,0.1014784,97219.0,97209.0,0.3087005]
[1733817975754,0.1014784,97219.0,97214.0,0.3077215]
[1733817975953,0.1528904,97219.0,97218.0,0.24620839]
[1733817976154,0.16684179,97219.0,97218.0,0.24620839]
[1733817976343,0.42616339,97219.0,97218.0,4e-05]
[1733817977448,0.42716339,97219.0,97218.0,4e-05]
[1733817978957,0.43016339,97219.0,97218.0,4e-05]
[1733817979353,0.43116339,97219.0,97218.0,4e-05]
[1733817980150,0.43216339,97219.0,97218.0,4e-05]
[1733817980853,0.43216339,97219.0,97213.0,0.18470444]
[1733817980854,0.051414,97214.0,97213.0,0.18470444]
[1733817981046,0.051414,97214.0,97212.0,0.18470444]
[1733817981252,0.051494,97214.0,97213.0,0.18470444]
[1733817981563,0.051417,97210.0,97209.0,0.24627807]
[1733817982067,0.051497,97210.0,97209.0,6.968e-05]
[1733817982757,0.054497,97210.0,97209.0,6.968e-05]
[1733817983055,0.00308,97210.0,97209.0,0.04507642]
[1733817983254,0.00308,97210.0,97209.0,6.968e-05]
[1733817983451,0.00308,97210.0,97209.0,0.26420191]
[1733817984653,8e-05,97210.0,97209.0,0.26420191]
[1733817984852,0.00108,97210.0,97209.0,0.26420191]
[1733817985055,0.00208,97210.0,97209.0,0.26420191]
[1733817985246,0.00108,97210.0,97209.0,0.26420191]
[1733817985447,0.00208,97210.0,97209.0,0.26420191]
[1733817986560,8e-05,97210.0,97209.0,0.31620422]
[1733817988559,8e-05,97210.0,97209.0,0.31677205]
[1733817989353,8e-05,97210.0,97209.0,0.31377205]
[1733817989952,8e-05,97210.0,97209.0,0.31277205]
[1733817990348,8e-05,97210.0,97209.0,0.31245946]
[1733817991965,8e-05,97210.0,97209.0,0.31145946]
[1733817992153,0.00108,97210.0,97209.0,0.30945946]
[1733817992462,0.00108,97210.0,97209.0,0.61725929]
[1733817992860,0.00108,97210.0,97209.0,6.968e-05]
[1733817996462,0.00108,97210.0,97209.0,0.24635526]
[1733817996962,0.09354281,97210.0,97209.0,6.968e-05]
[1733817997462,0.00108,97210.0,97209.0,6.968e-05]
[1733817997867,0.09354281,97210.0,97209.0,6.968e-05]
[1733817998052,0.00108,97210.0,97209.0,6.968e-05]
[1733818000858,0.00108,97210.0,97209.0,0.24634905]
[1733818001059,0.00108,97210.0,97209.0,6.968e-05]
[1733818001973,0.00108,97210.0,97209.0,0.24638729]
[1733818002266,0.00108,97210.0,97209.0,6.968e-05]
[1733818003964,0.09352973,97210.0,97209.0,6.968e-05]
[1733818004163,0.00108,97210.0,97209.0,6.968e-05]
[1733818013276,0.00108,97210.0,97209.0,0.05148668]
[1733818013569,0.00108,97210.0,97209.0,0.06472289]
[1733818013767,8e-05,97214.0,97213.0,0.051415]
[1733818013967,8e-05,97214.0,97213.0,0.412215]
[1733818014174,8e-05,97214.0,97213.0,0.412255]
[1733818014965,8e-05,97214.0,97213.0,0.99195428]
[1733818014966,0.00108,97214.0,97213.0,0.99195428]
[1733818015370,0.00308,97214.0,97213.0,0.99195428]
[1733818015772,0.00308,97214.0,97213.0,0.67672097]
[1733818018574,0.00308,97214.0,97213.0,0.412255]
[1733818019378,0.00308,97214.0,97213.0,0.67674251]
[1733818020080,0.00308,97214.0,97213.0,0.67674251]
[1733818020778,0.00308,97214.0,97213.0,0.67702453]
[1733818021169,0.00308,97214.0,97213.0,0.412255]
[1733818022071,0.00308,97214.0,97213.0,0.67697638]
[1733818022370,0.00308,97214.0,97213.0,1.04579335]
[1733818022970,0.00308,97214.0,97213.0,0.99437835]
[1733818023366,0.00308,97214.0,97213.0,0.62556138]
[1733818023776,0.00308,97214.0,97213.0,0.67697638]
[1733818024778,0.00308,97214.0,97213.0,0.70727638]
[1733818025886,0.00308,97214.0,97213.0,1.02240433]
[1733818026284,0.00308,97214.0,97213.0,0.442555]
[1733818027078,0.00308,97214.0,97213.0,1.0228602]
[1733818027492,0.00308,97214.0,97213.0,0.7072974]
[1733818029191,0.00308,97214.0,97213.0,1.02316005]
[1733818029589,0.00308,97214.0,97213.0,1.03587785]
[1733818031405,0.00308,97214.0,97213.0,0.4552728]
[1733818032296,0.00308,97214.0,97213.0,1.0360019]
[1733818032695,0.00308,97214.0,97213.0,1.3968019]
[1733818034296,0.0979,97247.0,97213.0,1.6453869]
[1733818034498,0.0979,97247.0,97239.0,0.051401]
[1733818034698,0.0979,97247.0,97242.0,4e-05]
[1733818035207,0.149297,97247.0,97242.0,4e-05]
[1733818035407,0.002,97243.0,97242.0,4e-05]
[1733818035600,0.003,97243.0,97242.0,4e-05]
[1733818036107,0.003,97243.0,97242.0,0.00104]
[1733818036310,0.002,97243.0,97242.0,0.00104]
[1733818036606,0.01801217,97243.0,97242.0,0.00204]
[1733818037914,0.01601217,97243.0,97242.0,0.00204]
[1733818038303,0.01601217,97243.0,97242.0,0.1865076]
[1733818038704,0.01601217,97243.0,97242.0,0.00204]
[1733818043004,0.01601217,97243.0,97242.0,0.2480581]
[1733818043208,0.01601217,97243.0,97242.0,0.00204]
[1733818043407,0.01601217,97243.0,97242.0,0.24791793]
[1733818043611,0.01601217,97243.0,97242.0,0.00204]
[1733818044509,0.01601217,97243.0,97242.0,0.24786349]
[1733818045110,0.01601217,97243.0,97242.0,0.00204]
[1733818052100,0.06741117,97243.0,97242.0,0.00204]
[1733818052803,0.15978914,97243.0,97242.0,0.00204]
[1733818053004,0.06741117,97243.0,97242.0,0.00204]
[1733818053509,0.06741117,97243.0,97242.0,0.18650441]
[1733818053712,0.051402,97237.0,97236.0,0.13642452]
[1733818053902,0.15396328,97240.0,97219.0,0.30735086]
[1733818054106,0.67681217,97243.0,97209.0,6.968e-05]
[1733818054107,0.051409,97224.0,97218.0,0.66815086]
[1733818054315,0.0963,97223.0,97218.0,0.3608]
[1733818054614,8e-05,97219.0,97218.0,0.3608]
[1733818055511,0.051416,97212.0,97209.0,6.968e-05]
[1733818055809,8e-05,97210.0,97209.0,6.968e-05]
[1733818059513,0.051497,97210.0,97209.0,6.968e-05]
[1733818061311,0.052497,97210.0,97209.0,6.968e-05]
[1733818064213,0.00108,97210.0,97188.0,0.0314]
[1733818064413,0.051426,97192.0,97181.0,0.36132]
[1733818064622,0.051426,97192.0,97181.0,0.3608]
[1733818064623,8e-05,97189.0,97181.0,0.3608]
[1733818064816,8e-05,97182.0,97181.0,0.3608]
[1733818065613,8e-05,97182.0,97181.0,0.3698]
[1733818066018,8e-05,97182.0,97181.0,0.014]
[1733818066716,0.01245693,97182.0,97181.0,0.014]
[1733818067612,0.01245693,97182.0,97181.0,0.013]
[1733818076223,0.01245693,97182.0,97151.0,0.30703273]
[1733818076224,0.051441,97164.0,97151.0,0.30703273]
[1733818076432,0.051446,97156.0,97153.0,0.0304]
[1733818076730,0.3608,97160.0,97145.0,0.0306]
[1733818076931,0.10160597,97155.0,97145.0,0.0306]
[1733818077126,0.05145,97147.0,97145.0,0.0306]
[1733818077928,0.05145,97147.0,97145.0,0.0396]
[1733818079031,0.05145,97147.0,97145.0,0.0456]
[1733818080229,0.10160597,97155.0,97145.0,0.0456]
[1733818080532,0.11406255,97155.0,97154.0,4e-05]
[1733818080731,0.01245658,97155.0,97154.0,4e-05]
[1733818080928,0.051445,97156.0,97154.0,4e-05]
[1733818081339,0.051445,97156.0,97155.0,4e-05]
[1733818082036,0.052445,97156.0,97155.0,4e-05]
[1733818082540,0.052445,97156.0,97155.0,0.00304]
[1733818082731,0.052445,97156.0,97155.0,0.00804]
[1733818083631,0.052445,97156.0,97134.0,0.3608]
[1733818083825,0.052445,97156.0,97124.0,0.0613]
[1733818083826,0.3608,97148.0,97124.0,0.0613]
[1733818084034,0.051451,97145.0,97144.0,5.425e-05]
[1733818085725,0.052451,97145.0,97144.0,5.425e-05]
[1733818085926,0.055451,97145.0,97144.0,5.425e-05]
[1733818086936,0.051461,97126.0,97125.0,0.0312]
[1733818087230,0.051541,97126.0,97125.0,0.0312]
[1733818087430,0.051541,97126.0,97100.0,0.1]
[1733818087431,0.051462,97124.0,97101.0,0.3608]
[1733818087631,8e-05,97126.0,97100.0,0.1]
[1733818087632,0.051474,97101.0,97100.0,0.1]
[1733818088632,0.06407218,97101.0,97100.0,0.03631219]
[1733818088836,0.06507218,97101.0,97100.0,0.00334798]
[1733818089036,0.10699818,97101.0,97073.0,0.0327]
[1733818089232,0.10699818,97101.0,97064.0,0.0631]
[1733818089233,0.10160597,97083.0,97064.0,0.0631]
[1733818089541,8e-05,97065.0,97064.0,0.0958]
[1733818091138,8e-05,97065.0,97064.0,0.3958]
[1733818091344,0.00108,97065.0,97064.0,0.3958]
[1733818091637,0.00108,97065.0,97064.0,0.3998]
[1733818092340,0.0326,97112.0,97064.0,0.3998]
[1733818092341,0.01269433,97099.0,97086.0,0.051482]
[1733818092644,0.10160597,97110.0,97064.0,0.3998]
[1733818092645,0.051472,97105.0,97098.0,0.3608]
[1733818092838,0.051472,97105.0,97099.0,0.03]
[1733818093030,0.10160597,97110.0,97080.0,0.3608]
[1733818093031,0.20321194,97110.0,97080.0,0.3608]
[1733818093235,0.051481,97089.0,97081.0,0.03]
[1733818094048,8e-05,97088.0,97080.0,0.3608]
[1733818094441,8e-05,97081.0,97080.0,0.3608]
[1733818096847,0.051466,97117.0,97080.0,0.6608]
[1733818097144,0.10160597,97110.0,97104.0,0.3608]
[1733818097334,0.10160597,97110.0,97106.0,4e-05]
[1733818098738,0.051462,97125.0,97106.0,0.00404]
[1733818098941,0.10160597,97120.0,97106.0,0.00404]
[1733818099444,0.00110337,97107.0,97106.0,0.00404]
[1733818100040,0.00110337,97107.0,97106.0,0.03414]
[1733818100248,0.00110337,97107.0,97106.0,0.03114]
[1733818100447,0.00110337,97107.0,97106.0,0.00104]
[1733818101047,0.00110337,97107.0,97106.0,0.00404]
[1733818101636,0.00110337,97107.0,97106.0,0.00604]
[1733818101837,0.00110337,97107.0,97106.0,0.00304]
[1733818102244,0.00010337,97107.0,97106.0,0.00204]
[1733818103949,0.01259731,97107.0,97106.0,0.00104]
[1733818104144,0.01259731,97107.0,97106.0,0.00204]
[1733818105045,0.00010337,97107.0,97106.0,0.00104]
[1733818105242,0.00010337,97107.0,97106.0,0.00204]
[1733818105640,0.00010337,97107.0,97106.0,0.03534]
[1733818106446,0.00010337,97107.0,97106.0,0.39614]
[1733818106647,0.46240597,97130.0,97123.0,0.051462]
[1733818106948,0.46240597,97130.0,97129.0,4e-05]
[1733818106949,0.3608,97130.0,97129.0,4e-05]
[1733818107655,0.36093172,97130.0,97129.0,4e-05]
[1733818108249,0.36993172,97130.0,97129.0,4e-05]
[1733818108646,0.00913172,97130.0,97129.0,4e-05]
[1733818109350,0.00113172,97130.0,97129.0,4e-05]
[1733818109554,0.01364564,97130.0,97129.0,4e-05]
[1733818109750,0.00113172,97130.0,97129.0,4e-05]
[1733818122456,0.09330508,97130.0,97129.0,4e-05]
[1733818122663,0.00113172,97130.0,97129.0,4e-05]
[1733818123954,0.36193172,97130.0,97129.0,4e-05]
[1733818124558,0.36093172,97130.0,97129.0,4e-05]
[1733818124756,0.36293172,97130.0,97129.0,4e-05]
[1733818127863,0.00213172,97130.0,97129.0,4e-05]
[1733818128161,0.00213172,97130.0,97129.0,0.10868103]
[1733818128551,0.00213172,97130.0,97129.0,0.36125676]
[1733818130264,0.02059512,97149.0,97129.0,0.72969604]
[1733818130459,0.02059512,97149.0,97144.0,0.2461105]
[1733818130667,0.02059512,97149.0,97148.0,4e-05]
[1733818131455,0.02070404,97149.0,97148.0,4e-05]
[1733818132762,0.03370404,97149.0,97148.0,4e-05]
[1733818133963,0.03370404,97149.0,97120.0,0.37280598]
[1733818133964,0.051456,97136.0,97135.0,0.2461105]
[1733818134170,0.051456,97136.0,97135.0,0.04503766]
[1733818134465,8e-05,97136.0,97128.0,0.24620218]
[1733818134670,8e-05,97136.0,97128.0,9.168e-05]
[1733818134671,0.051459,97129.0,97128.0,9.168e-05]
[1733818134870,0.051539,97129.0,97128.0,0.04513499]
[1733818135773,0.051539,97129.0,97128.0,0.03382394]
[1733818135963,0.051461,97126.0,97124.0,0.2461105]
[1733818136158,0.051461,97126.0,97122.0,0.2461105]
[1733818136358,8e-05,97125.0,97122.0,0.2461105]
[1733818136558,0.051461,97126.0,97123.0,0.2461105]
[1733818136771,0.051461,97126.0,97124.0,0.2461105]
[1733818136968,0.051461,97126.0,97125.0,4e-05]
[1733818139666,0.052461,97126.0,97125.0,4e-05]
[1733818139871,0.053461,97126.0,97125.0,4e-05]
[1733818140470,0.055461,97126.0,97125.0,4e-05]
[1733818140869,0.14788181,97126.0,97125.0,4e-05]
[1733818141071,0.055461,97126.0,97125.0,0.2461505]
[1733818141571,0.055461,97126.0,97125.0,4e-05]
[1733818142082,0.055461,97126.0,97117.0,0.30776098]
[1733818142083,0.003,97126.0,97122.0,0.15607387]
[1733818142272,0.051465,97118.0,97117.0,0.00013124]
[1733818142580,0.051465,97118.0,97100.0,0.30762974]
[1733818142581,0.45322081,97118.0,97100.0,0.30762974]
[1733818142771,0.051474,97102.0,97100.0,0.30762974]
[1733818142970,8e-05,97101.0,97095.0,0.30762974]
[1733818143173,8e-05,97101.0,97094.0,0.30762974]
[1733818143377,0.051478,97094.0,97091.0,0.30762974]
[1733818143580,8e-05,97096.0,97086.0,0.30762974]
[1733818143581,0.3608,97095.0,97086.0,0.30762974]
[1733818143877,0.3608,97095.0,97084.0,0.3608]
[1733818143878,0.051483,97085.0,97084.0,0.66870997]
[1733818144379,0.051563,97085.0,97078.0,0.0333]
[1733818144779,8e-05,97079.0,97078.0,0.0333]
[1733818145671,8e-05,97079.0,97078.0,0.0403]
[1733818147164,8e-05,97079.0,97078.0,0.4051]
[1733818147375,8e-05,97079.0,97078.0,0.449587]
[1733818147376,0.00108,97079.0,97078.0,0.449587]
[1733818147675,8e-05,97085.0,97084.0,0.051483]
[1733818147870,8e-05,97085.0,97084.0,0.0965436]
[1733818148273,0.0120012,97096.0,97087.0,0.051481]
[1733818148474,0.10160597,97100.0,97095.0,0.3608]
[1733818148776,0.051475,97101.0,97095.0,0.36084]
[1733818149081,0.01214341,97101.0,97100.0,4e-05]
[1733818149374,0.10160597,97110.0,97100.0,4e-05]
[1733818149578,0.21514926,97110.0,97100.0,4e-05]
[1733818149775,0.26661926,97110.0,97109.0,4e-05]
[1733818149970,0.06340732,97110.0,97109.0,4e-05]
[1733818151976,0.01193732,97110.0,97109.0,4e-05]
[1733818152166,0.051468,97113.0,97109.0,4e-05]
[1733818152576,0.051468,97113.0,97112.0,4e-05]
[1733818154280,0.053468,97113.0,97112.0,4e-05]
[1733818157481,0.414268,97113.0,97112.0,4e-05]
[1733818158371,0.3628,97113.0,97112.0,4e-05]
[1733818164382,0.3628,97113.0,97095.0,4e-05]
[1733818164383,0.48569782,97113.0,97095.0,4e-05]
[1733818164576,0.051477,97096.0,97095.0,4e-05]
[1733818164780,0.051557,97096.0,97095.0,4e-05]
[1733818166384,0.051557,97096.0,97095.0,0.00504]
[1733818166980,0.051557,97096.0,97095.0,4e-05]
[1733818167176,0.052557,97096.0,97095.0,0.00804]
[1733818167582,0.052557,97096.0,97095.0,0.00304]
[1733818167785,0.055557,97096.0,97095.0,4e-05]
[1733818168085,0.056557,97096.0,97095.0,4e-05]
[1733818168682,0.06853777,97096.0,97095.0,4e-05]
[1733818168986,0.06953777,97096.0,97095.0,4e-05]
[1733818170192,0.07053777,97096.0,97095.0,0.00104]
[1733818170791,0.07053777,97096.0,97095.0,1e-08]
[1733818170792,0.16293199,97096.0,97095.0,1e-08]
[1733818171087,0.16304673,97096.0,97095.0,1e-08]
[1733818171293,0.07065251,97096.0,97095.0,1e-08]
[1733818172890,0.051484,97084.0,97080.0,0.3608]
[1733818173289,8e-05,97081.0,97080.0,0.3608]
[1733818173690,8e-05,97081.0,97080.0,0.40586462]
[1733818174392,8e-05,97081.0,97080.0,0.3608]
[1733818174891,0.00208,97081.0,97080.0,0.3608]
[1733818175403,0.01364865,97081.0,97080.0,0.3608]
[1733818175583,0.00208,97081.0,97080.0,0.3608]
[1733818176685,0.00208,97081.0,97080.0,0.40586332]
[1733818177092,0.052565,97081.0,97080.0,0.40586332]
[1733818178101,0.051565,97081.0,97080.0,0.40586332]
[1733818178284,0.052565,97081.0,97080.0,0.40586332]
[1733818179390,0.00108,97081.0,97077.0,0.0312]
[1733818179693,8e-05,97078.0,97077.0,0.0312]
[1733818179994,8e-05,97078.0,97077.0,0.07626385]
[1733818180193,8e-05,97078.0,97077.0,0.0312]
[1733818180398,8e-05,97078.0,97077.0,0.0322]
[1733818181087,8e-05,97078.0,97077.0,0.0312]
[1733818181287,8e-05,97078.0,97077.0,0.0322]
[1733818183699,8e-05,97078.0,97077.0,0.0312]
[1733818184290,0.00108,97078.0,97077.0,0.0312]
[1733818188903,0.00108,97078.0,97077.0,0.07626525]
[1733818189406,0.00108,97078.0,97077.0,0.66372299]
[1733818189789,0.01165172,97082.0,97077.0,0.66373372]
[1733818189995,0.51388697,97090.0,97081.0,0.3608]
[1733818190195,0.52549011,97090.0,97081.0,0.66904168]
[1733818190497,0.52549011,97090.0,97082.0,0.58837107]
[1733818190696,0.051482,97088.0,97083.0,0.58838072]
[1733818190898,0.051482,97088.0,97083.0,0.30820168]
[1733818191209,0.051483,97084.0,97083.0,0.30820168]
[1733818191395,0.051483,97084.0,97083.0,0.28072881]
[1733818192698,0.055483,97084.0,97083.0,0.28072881]
[1733818205306,0.055483,97084.0,97083.0,0.32579097]
[1733818205702,0.055483,97084.0,97083.0,0.30860389]
[1733818206002,0.055483,97084.0,97083.0,0.04506249]
[1733818206406,0.051484,97082.0,97081.0,4e-05]
[1733818207309,0.051564,97082.0,97081.0,0.04510561]
[1733818207996,0.052564,97082.0,97081.0,0.04510561]
[1733818208197,0.00108,97082.0,97081.0,0.2786402]
[1733818208403,0.00108,97082.0,97081.0,0.32370277]
[1733818209011,0.00308,97082.0,97081.0,0.32370277]
[1733818209502,0.00308,97082.0,97081.0,0.2786402]
[1733818210411,0.00308,97082.0,97081.0,0.3237014]
[1733818211803,0.00308,97082.0,97081.0,0.69394139]
[1733818212202,0.00308,97082.0,97081.0,0.3237014]
[1733818212612,0.00308,97082.0,97081.0,0.69394112]
[1733818212813,0.00308,97082.0,97081.0,0.3237014]
[1733818214709,0.00308,97082.0,97081.0,0.2786402]
[1733818215503,0.00308,97082.0,97081.0,0.7061394]
[1733818218015,0.09238572,97107.0,97095.0,0.051477]
[1733818218316,0.21528354,97108.0,97095.0,0.7359384]
[1733818218518,0.05147,97109.0,97095.0,1.10613822]
[1733818218519,0.14385572,97109.0,97095.0,1.10613822]
[1733818218713,0.01154471,97102.0,97095.0,1.10613822]
[1733818218917,0.01154471,97102.0,97095.0,1.10617822]
[1733818219323,0.06301871,97102.0,97095.0,0.7359784]
[1733818219723,0.00811474,97096.0,97095.0,0.7369784]
[1733818220222,0.01111474,97096.0,97095.0,0.7369784]
[1733818223412,0.01111474,97096.0,97095.0,0.6919172]
[1733818224712,0.01111474,97096.0,97095.0,0.73696976]
[1733818227628,0.01111474,97096.0,97095.0,0.00104]
[1733818232124,0.051479,97093.0,97091.0,0.2464117]
[1733818232315,0.01111474,97096.0,97081.0,4e-05]
[1733818232316,0.10350046,97096.0,97088.0,0.20862193]
[1733818232512,0.10350046,97096.0,97081.0,4e-05]
[1733818232513,0.051484,97084.0,97081.0,4e-05]
[1733818232917,0.051564,97082.0,97081.0,4e-05]
[1733818233612,0.084864,97082.0,97081.0,4e-05]
[1733818234420,0.17729252,97082.0,97081.0,4e-05]
[1733818234917,0.084864,97082.0,97081.0,4e-05]
[1733818235321,0.117464,97082.0,97081.0,4e-05]
[1733818235715,0.119464,97082.0,97081.0,4e-05]
[1733818236929,0.13090158,97082.0,97081.0,4e-05]
[1733818238025,0.01351758,97082.0,97081.0,4e-05]
[1733818239820,0.01351758,97082.0,97081.0,0.18494406]
[1733818240029,0.01351758,97082.0,97081.0,4e-05]
[1733818242625,0.01351758,97082.0,97081.0,0.18494406]
[1733818243031,0.01351758,97082.0,97081.0,4e-05]
[1733818243228,0.01351758,97082.0,97081.0,0.18465377]
[1733818244525,0.01351758,97082.0,97081.0,4e-05]
[1733818245020,0.01351758,97082.0,97081.0,0.18465377]
[1733818245219,0.01351758,97082.0,97081.0,4e-05]
[1733818251229,0.01351758,97082.0,97074.0,0.18457719]
[1733818251230,0.051488,97076.0,97074.0,0.18457719]
[1733818251831,0.051489,97074.0,97073.0,0.18457719]
[1733818252033,0.051489,97074.0,97067.0,0.3608]
[1733818252225,0.051569,97074.0,97067.0,0.3608]
[1733818252622,8e-05,97068.0,97067.0,0.3608]
[1733818253129,8e-05,97068.0,97067.0,0.40586708]
[1733818253334,8e-05,97068.0,97067.0,0.3608]
[1733818253632,8e-05,97068.0,97067.0,0.3658]
[1733818254624,8e-05,97068.0,97067.0,0.3688]
[1733818255636,8e-05,97068.0,97067.0,0.41386848]
[1733818256336,8e-05,97068.0,97067.0,0.05306848]
[1733818256528,8e-05,97068.0,97060.0,0.35800597]
[1733818256838,0.051496,97061.0,97060.0,0.05]
[1733818257036,0.051576,97061.0,97060.0,0.05]
[1733818257631,0.051576,97061.0,97060.0,0.054]
[1733818258333,0.051576,97061.0,97060.0,0.05]
[1733818258640,0.051576,97061.0,97060.0,0.054]
[1733818259029,0.051576,97061.0,97060.0,0.09907224]
[1733818259230,0.051576,97061.0,97060.0,0.058]
[1733818259539,0.052576,97061.0,97060.0,0.10307293]
[1733818260236,0.052576,97061.0,97060.0,0.058]
[1733818260444,0.052576,97061.0,97060.0,0.10307297]
[1733818260737,0.052576,97061.0,97060.0,0.058]
[1733818261338,0.14507918,97061.0,97060.0,0.058]
[1733818261540,0.052576,97061.0,97060.0,0.058]
[1733818262139,0.14505403,97061.0,97060.0,0.058]
[1733818262739,0.052576,97061.0,97060.0,0.058]
[1733818265038,0.052576,97061.0,97043.0,0.0322]
[1733818265039,0.051505,97044.0,97043.0,0.0322]
[1733818265334,0.051505,97044.0,97038.0,0.36910597]
[1733818265335,0.051505,97044.0,97037.0,0.3608]
[1733818265943,0.051585,97044.0,97037.0,0.3608]
[1733818266140,0.051585,97044.0,97039.0,6.76e-05]
[1733818266444,0.051506,97042.0,97039.0,6.76e-05]
[1733818266633,0.051507,97040.0,97039.0,6.76e-05]
[1733818267736,0.051507,97040.0,97039.0,0.0060676]
[1733818268038,0.052507,97040.0,97039.0,0.0100676]
[1733818268442,0.05259785,97040.0,97039.0,0.0080676]
[1733818268636,0.05259785,97040.0,97039.0,0.00502712]
[1733818269634,0.05259785,97040.0,97017.0,0.42861913]
[1733818269635,0.00109085,97040.0,97017.0,0.3608]
[1733818269837,0.051518,97019.0,97017.0,0.3608]
[1733818270035,0.3608,97021.0,97003.0,0.00128]
[1733818270339,0.051522,97012.0,97003.0,0.00128]
[1733818270542,0.051522,97012.0,97003.0,0.01276376]
[1733818270543,8e-05,97004.0,97003.0,0.01276376]
[1733818271141,8e-05,97004.0,97003.0,0.02076376]
[1733818271540,8e-05,97004.0,97003.0,0.00928]
[1733818271749,8e-05,97004.0,97003.0,0.05437442]
[1733818272040,8e-05,97004.0,97003.0,0.41517442]
[1733818273248,0.00208,97004.0,97003.0,0.41417442]
[1733818274347,0.00208,97004.0,97003.0,0.36908]
[1733818274540,0.00208,97004.0,97003.0,0.41417153]
[1733818274944,0.00208,97004.0,97003.0,0.36908]
[1733818275550,0.10160597,97030.0,97019.0,0.051518]
[1733818275845,0.0723595,97040.0,97032.0,0.051511]
[1733818276244,0.0208525,97040.0,97039.0,4e-05]
[1733818276551,0.0208525,97040.0,97039.0,0.051547]
[1733818276743,0.03250312,97040.0,97039.0,0.051547]
[1733818277053,0.0208525,97040.0,97039.0,4e-05]
[1733818277549,0.0208525,97040.0,97026.0,0.3608]
[1733818277550,0.051512,97031.0,97020.0,0.083017]
[1733818277750,0.051512,97031.0,97020.0,0.0315]
[1733818277751,0.20321194,97030.0,97020.0,0.0315]
[1733818277947,0.10160597,97030.0,97017.0,0.3608]
[1733818278252,0.13200597,97030.0,97017.0,0.3608]
[1733818278446,0.10160597,97027.0,97017.0,0.3608]
[1733818280048,0.10160597,97027.0,97020.0,0.004]
[1733818280353,0.001,97027.0,97020.0,0.004]
[1733818280849,0.001,97027.0,97017.0,0.3608]
[1733818280850,0.001,97027.0,97017.0,0.3648]
[1733818281650,8e-05,97018.0,97017.0,0.3648]
[1733818282155,8e-05,97018.0,97017.0,0.34438272]
[1733818282452,8e-05,97018.0,97017.0,0.34038272]
[1733818283153,0.051598,97018.0,97017.0,0.34038272]
[1733818283342,0.052598,97018.0,97017.0,0.004]
[1733818284654,0.00108,97018.0,97017.0,0.004]
[1733818285147,0.00108,97018.0,97017.0,0.055519]
[1733818285456,0.10160597,97030.0,97017.0,0.004]
[1733818285646,0.10160597,97030.0,97020.0,0.051517]
[1733818285850,0.10160597,97030.0,97029.0,4e-05]
[1733818286152,0.02104393,97030.0,97029.0,4e-05]
[1733818287746,0.02104393,97030.0,97029.0,0.00204]
[1733818291455,0.10160597,97039.0,97029.0,0.00204]
[1733818291652,0.10160597,97039.0,97031.0,0.051511]
[1733818292353,0.10160597,97039.0,97038.0,4e-05]
[1733818293548,0.12273458,97039.0,97038.0,4e-05]
[1733818293749,0.12373458,97039.0,97038.0,4e-05]
[1733818294459,0.02212861,97039.0,97038.0,4e-05]
[1733818297559,0.02212861,97039.0,97038.0,0.24667403]
[1733818297760,0.02212861,97039.0,97038.0,4e-05]
[1733818298063,0.02212861,97039.0,97038.0,0.09663096]
[1733818298064,0.001,97039.0,97038.0,0.09663096]
[1733818298661,0.001,97039.0,97038.0,0.40463693]
[1733818298861,0.001,97039.0,97038.0,0.09663096]
[1733818299060,0.001,97039.0,97038.0,0.40463693]
[1733818299360,0.001,97039.0,97038.0,0.09663096]
[1733818299561,0.001,97039.0,97038.0,0.37371883]
[1733818299868,0.001,97039.0,97038.0,0.74344165]
[1733818300252,0.001,97039.0,97038.0,0.37371883]
[1733818301056,9.085e-05,97040.0,97038.0,0.37371883]
[1733818301261,0.10160597,97060.0,97040.0,0.10160597]
[1733818301455,8e-05,97074.0,97061.0,0.051495]
[1733818301456,0.09228653,97074.0,97061.0,0.051495]
[1733818301648,0.09228653,97074.0,97059.0,0.3608]
[1733818301649,8e-05,97074.0,97062.0,0.2978816]
[1733818301851,8e-05,97074.0,97073.0,4e-05]
[1733818302159,0.01151038,97074.0,97073.0,4e-05]
[1733818302360,0.00016085,97074.0,97073.0,4e-05]
[1733818302661,0.02059803,97074.0,97073.0,4e-05]
[1733818303156,0.02059803,97074.0,97073.0,0.00104]
[1733818303363,0.02859803,97074.0,97073.0,0.00104]
[1733818304367,0.01716085,97074.0,97073.0,0.00104]
[1733818304765,0.01716085,97074.0,97073.0,0.03294]
[1733818306060,0.00916085,97074.0,97073.0,0.03194]
[1733818306262,0.01516085,97074.0,97073.0,0.03294]
[1733818306763,0.00616085,97074.0,97073.0,0.03294]
[1733818306965,0.01516085,97074.0,97073.0,0.03294]
[1733818308761,0.01516085,97074.0,97073.0,0.03303085]
[1733818309763,0.01516085,97074.0,97063.0,0.04506418]
[1733818309764,0.01516085,97074.0,97061.0,0.2463866]
[1733818309962,0.3608,97069.0,97044.0,0.1457]
[1733818310168,0.10160597,97054.0,97045.0,0.04506821]
[1733818310365,0.10160597,97054.0,97041.0,0.3917]
[1733818310366,0.10160597,97054.0,97043.0,0.051505]
[1733818310770,0.10160597,97054.0,97041.0,0.3917]
[1733818310961,0.10160597,97054.0,97041.0,0.3608]
[1733818311160,0.051504,97046.0,97036.0,0.3608]
[1733818311473,8e-05,97042.0,97036.0,0.3608]
[1733818311671,8e-05,97037.0,97036.0,0.3608]
[1733818313463,8e-05,97037.0,97036.0,0.3618]
[1733818314266,8e-05,97037.0,97036.0,0.3638]
[1733818314658,8e-05,97037.0,97036.0,0.3628]
[1733818314964,0.00108,97037.0,97036.0,0.3618]
[1733818315270,0.00108,97037.0,97036.0,0.3628]